bitfinex/quotes_ETHUSD_20250620
["timestamp","ask_amount","ask_price","bid_price","bid_amount"]
[1750377601400,0.7542,2524.0,2523.1,0.8580736]
[1750377605216,0.7542,2524.0,2523.3,0.8283]
[1750377605428,30.0,2524.1,2524.0,3.96196513]
[1750377605726,3.28273169,2524.1,2524.0,3.96196513]
[1750377605890,1.18931685,2524.2,2524.1,3.96180816]
[1750377607341,1.24871685,2524.2,2524.1,3.96180816]
[1750377609296,0.7958,2524.2,2524.1,3.96180816]
[1750377610196,0.8542,2524.2,2524.1,3.96180816]
[1750377610395,0.7958,2524.2,2524.1,3.96180816]
[1750377610842,1.638,2524.3,2524.2,3.96165121]
[1750377611712,0.0584,2524.1,2523.4,0.8517]
[1750377611953,0.0584,2524.1,2524.0,3.961961]
[1750377612148,0.8616,2524.2,2524.1,3.96180816]
[1750377613140,1.638,2524.3,2524.2,3.96165121]
[1750377614541,3.60341489,2524.5,2524.3,3.96149427]
[1750377614839,3.60341489,2524.5,2524.4,3.96133734]
[1750377615046,3.66181489,2524.5,2524.4,3.96133734]
[1750377615435,3.66181489,2524.5,2524.3,3.96140148]
[1750377615945,0.8867,2524.4,2524.1,3.96173483]
[1750377616145,0.0584,2524.3,2524.2,3.96157498]
[1750377618349,0.0584,2524.3,2524.1,3.96171429]
[1750377618554,0.8345,2524.2,2524.1,3.96171429]
[1750377619369,0.7761,2524.2,2524.1,3.96171429]
[1750377619768,0.8345,2524.2,2524.1,3.96171429]
[1750377622168,0.7761,2524.2,2524.1,3.96171429]
[1750377622364,4.46901489,2524.5,2524.4,3.96133734]
[1750377622667,10.87001489,2524.5,2524.4,3.96133734]
[1750377623361,10.87001489,2524.5,2524.0,0.0606]
[1750377623568,0.0584,2524.4,2524.3,3.96134993]
[1750377626875,4.41061489,2524.5,2524.4,3.96133734]
[1750377627046,3.60341489,2524.5,2524.4,5.23908214]
[1750377627377,3.60341489,2524.5,2524.4,5.19946855]
[1750377630677,3.60341489,2524.5,2524.4,5.23907791]
[1750377630877,3.60341489,2524.5,2524.4,5.14976855]
[1750377631082,4.39081489,2524.5,2524.4,3.96133734]
[1750377631242,4.44921489,2524.5,2524.4,3.96133734]
[1750377631767,4.39081489,2524.5,2524.3,3.96141127]
[1750377632069,0.0584,2524.4,2524.3,3.96141127]
[1750377632483,8.0954,2524.4,2523.8,0.833]
[1750377632644,0.0584,2524.2,2524.0,3.96186976]
[1750377632840,0.8017,2524.3,2523.7,3.96241478]
[1750377633157,2.4971,2524.3,2524.2,3.96165121]
[1750377633368,8.8971,2524.3,2524.2,3.96165121]
[1750377633683,4.38051489,2524.5,2524.3,3.96148136]
[1750377633982,6.4584,2524.4,2524.3,3.96148136]
[1750377634289,6.4584,2524.4,2524.2,3.96156402]
[1750377634290,0.0584,2524.3,2524.2,3.96156402]
[1750377634459,6.4,2524.4,2524.1,3.96172055]
[1750377635059,0.0584,2524.3,2524.1,3.96172055]
[1750377635576,6.4,2524.4,2524.1,3.96170053]
[1750377635776,0.0584,2524.2,2524.1,3.96170053]
[1750377635948,0.8355,2524.2,2524.0,3.96194467]
[1750377636148,0.0584,2524.1,2524.0,3.96194467]
[1750377636349,0.7771,2524.2,2523.9,3.96203862]
[1750377636988,0.0584,2524.1,2524.0,3.96194596]
[1750377637485,0.8355,2524.2,2524.1,3.96180816]
[1750377638188,0.8355,2524.2,2524.0,3.96188085]
[1750377638492,0.0601,2524.1,2524.0,3.96188085]
[1750377638895,0.8372,2524.2,2524.1,3.96180816]
[1750377639494,0.0601,2524.2,2524.1,3.96180816]
[1750377639890,0.0601,2524.2,2524.0,3.96188088]
[1750377640587,0.0601,2524.2,2523.9,3.9620377]
[1750377640955,0.0601,2524.1,2523.9,3.9620377]
[1750377641155,0.0601,2524.1,2523.6,4.02459312]
[1750377641385,0.0601,2524.1,2524.0,3.96196513]
[1750377641599,0.0601,2524.2,2524.1,3.96176844]
[1750377641795,0.0601,2524.2,2524.0,3.96188531]
[1750377642685,0.0601,2524.0,2523.8,3.96226796]
[1750377642886,6.4,2523.9,2523.8,3.96226796]
[1750377643116,6.4601,2523.9,2523.8,3.96226796]
[1750377643419,6.4601,2523.9,2523.7,3.9623498]
[1750377643789,6.4,2523.9,2523.6,3.96251156]
[1750377644329,0.8462,2523.8,2523.7,3.9624361]
[1750377645572,0.7861,2523.8,2523.7,3.9624361]
[1750377645782,6.4,2523.9,2523.7,3.9624361]
[1750377645783,6.4,2523.9,2523.8,3.9622791]
[1750377646273,16.4,2523.9,2523.8,3.9622791]
[1750377646575,16.4601,2523.9,2523.8,3.9622791]
[1750377646978,10.0,2523.9,2523.8,3.9622791]
[1750377647409,10.0,2523.8,2523.7,3.96234338]
[1750377647616,8.0981,2523.9,2523.7,3.96234338]
[1750377647910,10.0,2523.8,2523.6,3.96243725]
[1750377648072,10.0,2523.8,2523.7,3.9624361]
[1750377648593,0.7681,2523.7,2523.6,3.96250931]
[1750377649075,0.7681,2523.7,2523.5,3.96259695]
[1750377649275,0.7681,2523.7,2523.6,3.96259312]
[1750377649512,10.0601,2523.8,2523.7,3.9624361]
[1750377650416,0.7852,2523.9,2523.8,3.9622791]
[1750377650612,8.038,2523.9,2523.8,3.9622791]
[1750377650819,18.038,2523.9,2523.8,3.9622791]
[1750377651321,18.0981,2523.9,2523.8,3.9622791]
[1750377651478,10.0,2523.8,2523.7,3.96234651]
[1750377651675,8.0981,2523.9,2523.8,3.9622791]
[1750377652213,8.0981,2523.9,2523.7,3.96234068]
[1750377652419,8.0981,2523.9,2523.7,3.96229463]
[1750377652720,10.0,2523.8,2523.7,3.96229463]
[1750377653019,10.0601,2523.8,2523.7,3.96229463]
[1750377655132,10.0,2523.8,2523.7,3.96229463]
[1750377660202,10.0601,2523.8,2523.4,0.8112]
[1750377660397,10.0601,2523.6,2523.5,3.96261273]
[1750377661935,0.7513,2523.5,2523.1,0.0502736]
[1750377662095,10.0,2523.3,2523.1,0.0502736]
[1750377662294,8.0981,2523.4,2523.1,0.0502736]
[1750377662295,17.2124,2523.2,2523.1,0.0502736]
[1750377662706,17.2124,2523.2,2523.1,4.01365198]
[1750377663346,16.4611,2523.2,2523.1,4.01365198]
[1750377664869,10.0,2523.2,2523.1,4.01365198]
[1750377667366,10.0601,2523.2,2523.1,4.01365198]
[1750377668315,10.0,2523.2,2523.1,4.01365198]
[1750377668520,10.0617,2523.2,2523.1,4.01365198]
[1750377669478,12.49157,2523.2,2523.1,4.01365198]
[1750377669768,12.49157,2523.2,2523.1,0.0502736]
[1750377671246,12.49157,2523.2,2523.1,4.01365198]
[1750377671452,18.041,2523.2,2523.1,4.01365198]
[1750377671968,18.042,2523.2,2523.1,4.07275198]
[1750377674792,1.637,2523.2,2523.1,4.07275198]
[1750377674941,8.041,2523.2,2523.1,4.07275198]
[1750377675345,8.041,2523.2,2523.1,4.01365198]
[1750377678395,8.041,2523.2,2523.1,4.06485198]
[1750377678989,8.041,2523.2,2523.1,4.01365198]
[1750377681561,8.1027,2523.2,2523.1,4.01365198]
[1750377682908,8.041,2523.2,2523.1,4.01365198]
[1750377686277,8.1027,2523.2,2523.1,4.01365198]
[1750377688725,18.99438,2523.2,2523.1,0.0502736]
[1750377689025,18.99438,2523.2,2523.1,4.01365198]
[1750377689535,18.99438,2523.2,2523.1,0.0502736]
[1750377690117,18.99438,2523.2,2523.1,4.01365198]
[1750377690301,18.93068,2523.2,2523.1,4.01365198]
[1750377690503,18.1007,2523.2,2523.1,4.01365198]
[1750377690812,18.1007,2523.2,2523.1,0.0502736]
[1750377691616,18.8753,2523.2,2523.1,0.0502736]
[1750377691819,22.8385213,2523.2,2523.1,0.0502736]
[1750377692026,25.51868099,2523.2,2523.1,0.0502736]
[1750377692607,13.51645969,2523.2,2523.1,0.0502736]
[1750377692916,18.8823,2523.2,2523.1,4.01365198]
[1750377693543,18.1077,2523.2,2523.1,4.01365198]
[1750377694117,11.6987,2523.2,2523.1,4.01365198]
[1750377694319,11.637,2523.2,2523.1,4.01365198]
[1750377694629,16.41,2523.2,2523.1,4.01365198]
[1750377699731,10.0,2523.2,2523.1,4.01365198]
[1750377699930,16.408,2523.2,2523.1,4.01365198]
[1750377702014,16.407,2523.2,2523.1,4.01365198]
[1750377704225,16.407,2523.2,2523.1,4.06285198]
[1750377704426,16.406,2523.2,2523.1,4.06285198]
[1750377704660,3.5853218,2523.5,2523.4,3.96290718]
[1750377705025,3.5853218,2523.5,2523.4,4.01210718]
[1750377705923,11.641,2524.0,2523.9,3.96212211]
[1750377706170,18.048,2524.0,2523.9,3.96212211]
[1750377706542,18.1074,2524.0,2523.9,3.96212211]
[1750377707070,18.1084,2524.0,2523.9,3.96212211]
[1750377707263,1.7004,2524.0,2523.9,3.96212211]
[1750377707450,8.1074,2524.0,2523.9,3.96212211]
[1750377707757,18.1074,2524.0,2523.9,3.96212211]
[1750377708969,10.0,2523.9,2523.6,3.96250107]
[1750377709140,6.406,2523.8,2523.6,3.96250107]
[1750377709341,10.0,2523.7,2523.5,3.9626753]
[1750377709548,16.406,2523.6,2523.5,3.9626753]
[1750377709947,16.4654,2523.6,2523.5,3.9626753]
[1750377710150,16.4654,2523.6,2523.2,4.73536748]
[1750377710370,16.406,2523.6,2523.4,3.96289415]
[1750377710529,0.0594,2523.5,2523.3,3.96298151]
[1750377710735,18.12702,2523.6,2523.3,3.96298151]
[1750377711385,18.12702,2523.6,2523.4,3.96289686]
[1750377711386,0.0594,2523.5,2523.4,3.96289686]
[1750377711873,16.4654,2523.6,2523.5,3.96275014]
[1750377712171,16.4654,2523.6,2523.4,3.96283284]
[1750377712474,0.0594,2523.5,2523.4,3.96283284]
[1750377713550,16.406,2523.6,2523.3,3.96300421]
[1750377713773,0.0594,2523.5,2523.3,3.96300421]
[1750377713974,6.405,2523.4,2523.3,3.96300421]
[1750377714145,6.4654,2523.4,2523.3,3.96300421]
[1750377714945,6.406,2523.4,2523.2,3.96312078]
[1750377715280,0.0594,2523.3,2523.2,3.96312078]
[1750377716739,0.8149,2523.3,2523.1,4.01356964]
[1750377716968,6.4644,2523.2,2523.1,4.01356964]
[1750377718094,16.405,2523.2,2523.1,4.01356964]
[1750377718273,16.4644,2523.2,2523.1,4.01356964]
[1750377719599,16.405,2523.2,2523.1,4.01356964]
[1750377719785,16.4644,2523.2,2523.1,4.01356964]
[1750377720886,6.405,2523.2,2523.1,4.01356964]
[1750377721445,0.0594,2523.6,2523.4,3.96276686]
[1750377721689,6.403,2523.5,2523.4,3.96276686]
[1750377723368,6.4624,2523.5,2523.4,3.96276686]
[1750377724068,16.4624,2523.5,2523.4,3.96276686]
[1750377724273,10.0,2523.4,2523.3,3.96306424]
[1750377724466,0.7897,2523.7,2523.6,3.96259312]
[1750377724467,10.0,2523.7,2523.6,3.96259312]
[1750377724673,6.402,2523.7,2523.6,3.96259312]
[1750377725457,1.7004,2523.8,2523.7,3.9624361]
[1750377725878,18.1024,2523.8,2523.7,3.9624361]
[1750377729095,18.043,2523.8,2523.7,3.9624361]
[1750377729617,11.641,2523.8,2523.7,3.9624361]
[1750377729767,1.641,2523.8,2523.7,3.9624361]
[1750377729967,0.787567,2524.1,2523.9,3.96212211]
[1750377730306,18.039,2524.0,2523.9,3.96212211]
[1750377734845,11.637,2524.0,2523.9,3.96212211]
[1750377735031,18.039,2524.0,2523.9,3.96212211]
[1750377736949,18.039,2524.0,2523.5,3.96275014]
[1750377737121,18.039,2524.0,2523.8,3.9622791]
[1750377737320,18.1007,2524.0,2523.9,3.96212211]
[1750377742756,0.0617,2523.9,2523.7,3.96236166]
[1750377742916,16.401,2523.8,2523.7,3.96232876]
[1750377743112,0.0617,2523.6,2523.5,3.9626359]
[1750377743350,6.401,2523.6,2523.5,3.96275014]
[1750377743567,6.4627,2523.6,2523.5,3.96275014]
[1750377743712,10.0,2523.5,2523.2,3.96318842]
[1750377743911,10.0617,2523.5,2523.3,3.96291004]
[1750377744144,6.401,2523.4,2523.3,3.96291004]
[1750377744533,6.4627,2523.4,2523.3,3.96291004]
[1750377744857,10.0,2523.3,2523.1,4.01351473]
[1750377745054,16.4627,2523.2,2523.1,4.01351473]
[1750377745567,16.401,2523.2,2523.1,4.01351473]
[1750377745914,16.4627,2523.2,2523.1,0.0502736]
[1750377746444,17.251,2523.2,2523.1,0.0502736]
[1750377747113,19.02609271,2523.2,2523.1,0.0502736]
[1750377748613,19.02609271,2523.2,2523.1,4.01365198]
[1750377748614,19.02709271,2523.2,2523.1,4.01365198]
[1750377748816,16.4637,2523.2,2523.1,4.01365198]
[1750377749355,10.0,2523.2,2523.1,4.01365198]
[1750377749700,18.039,2523.2,2523.1,4.01365198]
[1750377750038,11.637,2523.2,2523.1,4.01365198]
[1750377750343,10.0,2523.2,2523.1,4.06185198]
[1750377750546,10.0,2523.2,2523.1,4.94637024]
[1750377750945,0.7993,2523.8,2523.2,4.0114213]
[1750377751233,1.637,2523.8,2523.7,3.9624361]
[1750377751456,18.039,2523.8,2523.7,3.9624361]
[1750377751658,18.04,2523.8,2523.7,3.9624361]
[1750377752015,11.637,2523.8,2523.7,3.9624361]
[1750377752221,18.04,2523.8,2523.7,3.9624361]
[1750377754082,18.1017,2523.8,2523.7,3.9624361]
[1750377756378,10.0,2523.7,2523.6,3.96253017]
[1750377756540,10.0,2523.7,2523.5,3.96267584]
[1750377756743,16.4637,2523.6,2523.5,3.96267584]
[1750377758178,10.0,2523.5,2523.2,3.9631591]
[1750377758379,6.402,2523.4,2523.3,3.96306424]
[1750377759757,6.4588,2523.4,2523.3,3.96306424]
[1750377760979,6.402,2523.4,2523.3,3.96306424]
[1750377761482,6.4588,2523.4,2523.3,3.96306424]
[1750377762693,6.402,2523.4,2523.3,3.96306424]
[1750377763983,0.0568,2523.7,2523.6,3.96252178]
[1750377764281,6.4588,2523.7,2523.6,3.96252178]
[1750377766451,1.637,2523.8,2523.7,3.9624361]
[1750377766749,10.0,2523.7,2523.5,0.8543]
[1750377766949,10.0,2523.7,2523.6,3.96259312]
[1750377767781,1.6938,2524.0,2523.8,3.9621798]
[1750377767982,16.402,2523.9,2523.8,3.9621798]
[1750377768577,10.0,2523.9,2523.8,3.9621798]
[1750377768771,16.402,2523.9,2523.8,3.9621798]
[1750377769531,10.0,2523.9,2523.8,3.9621798]
[1750377769699,16.402,2523.9,2523.8,3.9621798]
[1750377773397,16.401,2523.9,2523.8,3.9621798]
[1750377774415,10.0,2523.8,2523.7,3.96236688]
[1750377774586,0.0568,2523.8,2523.7,3.96236688]
[1750377776329,10.0568,2523.8,2523.7,3.96236688]
[1750377777253,10.0,2523.8,2523.7,3.96236688]
[1750377777400,10.0568,2523.8,2523.7,3.96236688]
[1750377779816,0.0568,2523.7,2523.5,3.96265748]
[1750377780144,6.4578,2523.6,2523.5,3.96265748]
[1750377780816,6.4578,2523.6,2523.3,3.96300304]
[1750377780817,6.401,2523.6,2523.4,3.9628366]
[1750377781023,0.0568,2523.5,2523.4,3.9628366]
[1750377782017,6.401,2523.6,2523.5,3.96275014]
[1750377782213,6.4578,2523.6,2523.5,3.96275014]
[1750377782739,8.0948,2523.6,2523.5,3.96275014]
[1750377782945,18.0948,2523.6,2523.5,3.96275014]
[1750377789169,18.46432709,2523.6,2523.5,3.96275014]
[1750377789646,18.0948,2523.6,2523.5,3.96275014]
[1750377789942,11.637,2523.6,2523.5,3.96275014]
[1750377790143,18.038,2523.6,2523.5,3.96275014]
[1750377790441,18.0986,2523.6,2523.5,3.96275014]
[1750377790646,10.0606,2523.5,2523.3,3.96291748]
[1750377790811,6.4616,2523.4,2523.3,3.96291748]
[1750377791030,10.0606,2523.3,2523.2,3.96311555]
[1750377791227,0.0606,2523.3,2523.2,3.96311555]
[1750377792966,17.1537,2523.4,2523.3,3.96306424]
[1750377793245,16.401,2523.4,2523.3,3.96306424]
[1750377795149,16.77030089,2523.4,2523.3,3.96306424]
[1750377795647,16.401,2523.4,2523.3,3.96306424]
[1750377795851,16.7703154,2523.4,2523.3,3.96306424]
[1750377796347,16.77030629,2523.4,2523.3,3.96306424]
[1750377796549,16.83090629,2523.4,2523.3,3.96306424]
[1750377796757,16.83090193,2523.4,2523.3,3.96306424]
[1750377797550,16.83087234,2523.4,2523.3,3.96306424]
[1750377798053,16.77027234,2523.4,2523.3,3.96306424]
[1750377798253,16.7702181,2523.4,2523.3,3.96306424]
[1750377798660,16.77021855,2523.4,2523.3,3.96306424]
[1750377799356,16.77022234,2523.4,2523.3,3.96306424]
[1750377799561,6.77022219,2523.4,2523.3,3.96306424]
[1750377801358,6.77029476,2523.4,2523.3,3.96306424]
[1750377801765,6.83089476,2523.4,2523.3,3.96306424]
[1750377802062,6.83089472,2523.4,2523.3,3.96306424]
[1750377802237,6.83089491,2523.4,2523.3,3.96306424]
[1750377802432,6.4616,2523.4,2523.3,3.96306424]
[1750377802636,6.83089086,2523.4,2523.3,3.96306424]
[1750377803037,6.83089968,2523.4,2523.3,3.96306424]
[1750377803764,6.83089968,2523.4,2523.1,4.0135992]
[1750377803765,0.0606,2523.3,2523.2,3.96313413]
[1750377804061,0.43004593,2523.3,2523.2,3.96313413]
[1750377804427,0.43006,2523.3,2523.2,3.96313413]
[1750377804971,0.0606,2523.3,2523.1,4.0135883]
[1750377805271,6.4616,2523.2,2523.1,4.0135883]
[1750377807053,16.4616,2523.2,2523.1,4.0135883]
[1750377807253,16.83110012,2523.2,2523.1,4.0135883]
[1750377807457,16.8311122,2523.2,2523.1,4.0135883]
[1750377807664,16.8311122,2523.2,2523.1,0.0502736]
[1750377807840,16.4616,2523.2,2523.1,0.0502736]
[1750377808045,16.83109931,2523.2,2523.1,4.01365198]
[1750377808680,16.83109931,2523.2,2523.1,0.0502736]
[1750377808989,16.83108266,2523.2,2523.1,4.01365198]
[1750377809546,16.401,2523.2,2523.1,4.01365198]
[1750377810309,16.77053438,2523.2,2523.1,4.01365198]
[1750377810678,10.36953301,2523.2,2523.1,4.01365198]
[1750377810880,10.36954167,2523.2,2523.1,4.01365198]
[1750377811203,16.77054167,2523.2,2523.1,4.01365198]
[1750377811775,10.0,2523.2,2523.1,4.07115198]
[1750377811978,16.401,2523.2,2523.1,4.07115198]
[1750377812304,16.401,2523.2,2523.1,4.01365198]
[1750377816872,10.0,2523.2,2523.1,4.95051222]
[1750377817491,10.0,2523.2,2523.1,4.89301222]
[1750377817716,10.0,2523.2,2523.1,4.95051222]
[1750377818026,1.637,2524.0,2523.9,3.96212211]
[1750377818375,1.637,2524.4,2524.3,3.96149427]
[1750377818581,18.038,2524.4,2524.3,3.96149427]
[1750377819003,8.038,2524.4,2524.3,3.96149427]
[1750377819415,1.637,2524.4,2524.3,3.96149427]
[1750377819615,8.038,2524.4,2524.3,3.96149427]
[1750377820027,8.40676005,2524.4,2524.3,3.96149427]
[1750377820383,8.40672559,2524.4,2524.3,3.96149427]
[1750377821820,8.40673298,2524.4,2524.3,3.96149427]
[1750377822531,8.46313298,2524.4,2524.3,3.96149427]
[1750377822689,8.46265753,2524.4,2524.2,3.96155081]
[1750377823018,8.0944,2524.4,2524.2,3.96155081]
[1750377823629,8.0944,2524.4,2524.1,3.96171925]
[1750377823788,10.0,2524.3,2524.1,3.96171925]
[1750377823988,16.4,2524.2,2524.1,3.96171925]
[1750377826473,0.0564,2524.1,2524.0,3.96182562]
[1750377827069,10.0,2524.1,2524.0,3.96182562]
[1750377827227,1.637,2524.4,2524.2,3.96165121]
[1750377827228,0.0564,2524.3,2524.2,3.96165121]
[1750377827433,6.4564,2524.3,2524.2,3.96165121]
[1750377827732,2.403,2524.4,2523.3,3.96305909]
[1750377827945,0.0564,2524.2,2524.0,3.96184053]
[1750377828145,16.4,2524.1,2524.0,3.96184053]
[1750377830353,10.0,2524.1,2524.0,3.96184053]
[1750377830743,16.417,2524.1,2524.0,4.02414053]
[1750377831582,16.417,2524.1,2524.0,3.96184053]
[1750377832541,16.417,2524.1,2524.0,4.02414053]
[1750377833181,10.0,2524.1,2524.0,4.89878657]
[1750377835081,10.0,2524.1,2524.0,5.65508657]
[1750377836974,2.4026,2524.8,2524.7,3.96086663]
[1750377837137,8.47555244,2524.8,2524.7,3.96086663]
[1750377837337,18.47555244,2524.8,2524.7,3.96086663]
[1750377837541,8.1074,2524.8,2524.7,3.96086663]
[1750377837740,8.47553873,2524.8,2524.7,3.96086663]
[1750377837979,2.06053873,2524.8,2524.7,3.96086663]
[1750377838179,8.47553873,2524.8,2524.7,3.96086663]
[1750377839080,8.1074,2524.8,2524.7,3.96086663]
[1750377840872,8.05,2524.8,2524.7,3.96086663]
[1750377841071,8.1064,2524.8,2524.7,3.96086663]
[1750377841801,0.825,2525.2,2525.1,3.96023919]
[1750377842091,0.36825389,2525.3,2525.2,3.96008236]
[1750377842280,16.78525389,2525.3,2525.2,3.96008236]
[1750377842476,16.78528607,2525.3,2525.2,3.96008236]
[1750377842682,16.417,2525.3,2525.2,3.96008236]
[1750377842865,6.78530386,2525.3,2525.2,3.96008236]
[1750377843066,6.4734,2525.3,2525.2,3.96008236]
[1750377843285,6.78498886,2525.3,2525.0,3.96024128]
[1750377843594,0.0564,2525.2,2525.1,3.96023919]
[1750377846200,0.0564,2525.1,2524.9,3.9604237]
[1750377846362,0.0564,2525.1,2525.0,3.96039603]
[1750377846700,17.2474,2525.1,2525.0,3.96039603]
[1750377848104,10.0583,2525.0,2524.9,3.96043404]
[1750377848305,0.0583,2525.0,2524.9,3.96043404]
[1750377851738,10.0583,2525.0,2524.9,3.96043404]
[1750377856941,10.0583,2525.0,2524.8,3.96066947]
[1750377856942,10.0,2525.0,2524.4,0.7572]
[1750377857150,6.4683,2524.9,2524.8,3.960695]
[1750377857735,16.4683,2524.9,2524.8,3.960695]
[1750377858327,16.41,2524.9,2524.7,3.96080109]
[1750377858645,0.0583,2524.8,2524.7,3.96080109]
[1750377859157,0.0583,2524.8,2524.0,0.8141]
[1750377859158,0.8319,2524.7,2524.0,0.8141]
[1750377859360,0.0583,2524.4,2524.0,0.8141]
[1750377859659,10.0,2524.2,2523.9,3.96210302]
[1750377859812,10.0583,2524.0,2523.9,3.96210302]
[1750377860150,10.0583,2524.0,2523.7,3.96234894]
[1750377860151,10.0,2524.0,2523.7,3.96234894]
[1750377860354,10.0,2523.8,2523.7,3.96234894]
[1750377860642,6.419,2523.8,2523.7,3.96234894]
[1750377861445,6.419,2523.8,2523.6,3.9625051]
[1750377861623,0.0583,2523.7,2523.6,3.9625051]
[1750377861824,0.0583,2524.3,2523.6,0.87140608]
[1750377862025,10.0,2524.1,2524.0,3.9619623]
[1750377862221,6.79225169,2524.1,2524.0,3.9619623]
[1750377862410,6.424,2524.1,2524.0,3.9619623]
[1750377862610,0.0583,2524.0,2523.8,3.96214374]
[1750377862833,0.0583,2524.0,2523.9,3.96212211]
[1750377863946,0.0583,2524.0,2523.8,3.96225212]
[1750377864138,0.0583,2524.0,2523.9,3.96212211]
[1750377864314,6.4843,2524.0,2523.9,3.96212211]
[1750377865168,10.0,2523.9,2523.8,3.96220974]
[1750377865671,10.0583,2523.9,2523.7,3.96230175]
[1750377865843,16.426,2523.8,2523.7,3.96230175]
[1750377866367,10.0,2523.8,2523.7,5.57718739]
[1750377868075,10.2759,2524.9,2523.7,1.55578564]
[1750377868371,0.0583,2524.4,2524.1,3.96170212]
[1750377868542,10.0,2524.2,2524.1,3.96170212]
[1750377868759,10.0583,2524.2,2524.1,3.96170212]
[1750377869243,10.0,2524.2,2524.1,3.96170212]
[1750377869865,0.7619,2524.5,2524.3,3.96149427]
[1750377870071,6.5143,2524.4,2524.2,3.96153427]
[1750377870474,16.5143,2524.4,2524.3,3.96149427]
[1750377870775,10.0,2524.4,2524.3,3.96149427]
[1750377870979,16.455,2524.4,2524.3,3.96149427]
[1750377873358,16.5133,2524.4,2524.3,3.96149427]
[1750377873563,18.26883,2524.4,2524.0,0.7967]
[1750377873781,0.0583,2524.3,2524.2,3.96161765]
[1750377874771,18.26883,2524.4,2524.3,3.96149427]
[1750377874971,18.32713,2524.4,2524.3,3.96149427]
[1750377877041,16.452,2524.4,2524.3,3.96149427]
[1750377878887,16.5143,2524.4,2524.3,3.96149427]
[1750377881275,16.452,2524.4,2524.3,3.96149427]
[1750377881480,10.0,2524.4,2524.3,3.96149427]
[1750377881680,10.0,2524.4,2524.3,4.01849427]
[1750377882045,10.0,2524.4,2524.3,4.89887876]
[1750377882441,10.0,2524.4,2524.3,3.96149427]
[1750377885957,10.0,2524.3,2523.8,0.8054]
[1750377886171,0.7851,2524.7,2523.9,3.96201603]
[1750377886172,10.0623,2524.1,2523.9,3.96201603]
[1750377886467,16.45,2524.0,2523.8,3.96220362]
[1750377886681,6.5123,2524.0,2523.7,3.96231703]
[1750377887062,6.5123,2524.0,2523.7,3.9624361]
[1750377887264,6.98048307,2524.0,2523.7,3.9624361]
[1750377887451,0.0623,2523.9,2523.7,3.9624361]
[1750377887652,16.5163,2523.8,2523.7,3.9624361]
[1750377889288,16.454,2523.8,2523.7,3.9624361]
[1750377893488,10.0,2523.8,2523.7,4.75493846]
[1750377893666,10.0,2523.8,2523.7,5.61583846]
[1750377894072,6.45,2523.9,2523.8,3.9622791]
[1750377894299,1.665,2524.2,2524.1,3.96180816]
[1750377894603,18.118,2524.2,2524.1,3.96180816]
[1750377895585,18.117,2524.2,2524.1,3.96180816]
[1750377896729,11.665,2524.2,2524.1,3.96180816]
[1750377896882,10.0,2524.2,2524.1,4.77620816]
[1750377897070,10.0,2524.2,2524.1,5.56871052]
[1750377897895,10.0,2524.2,2524.1,3.96180816]
[1750377898201,16.453,2524.2,2524.1,3.96180816]
[1750377903428,0.7623,2524.7,2523.9,0.7716]
[1750377903717,6.452,2525.0,2524.9,3.96055289]
[1750377903926,10.0,2525.1,2525.0,3.96039603]
[1750377904079,18.65046,2525.1,2525.0,3.96039603]
[1750377904270,18.71276,2525.1,2525.0,3.96039603]
[1750377905120,16.454,2525.1,2525.0,3.96039603]
[1750377905812,10.0623,2525.1,2525.0,3.96039603]
[1750377906013,16.5163,2525.1,2525.0,3.96039603]
[1750377906821,16.454,2525.1,2525.0,3.96039603]
[1750377907991,1.665,2525.3,2525.2,3.96008236]
[1750377908193,1.7226,2525.5,2525.3,3.95984293]
[1750377908482,10.0,2525.3,2525.2,3.96000359]
[1750377908704,6.5096,2525.4,2525.2,3.96000359]
[1750377909402,6.5096,2525.4,2525.3,3.95992555]
[1750377909716,6.5096,2525.4,2525.2,3.95999051]
[1750377909918,10.0,2525.3,2525.2,3.95999051]
[1750377911820,1.665,2525.5,2525.2,3.95999051]
[1750377911997,10.0,2525.3,2525.2,3.95999051]
[1750377914922,10.0,2525.3,2525.2,4.75069051]
[1750377915152,16.447,2525.3,2525.2,4.75069051]
[1750377919002,16.447,2525.3,2525.2,4.80749051]
[1750377919263,16.447,2525.3,2525.2,5.68426004]
[1750377919415,16.447,2525.3,2525.2,4.80749051]
[1750377920024,0.8034,2525.8,2525.7,3.95929841]
[1750377920313,18.97,2525.8,2525.7,3.95929841]
[1750377921420,10.3215,2526.1,2526.0,3.95882818]
[1750377921619,17.6836,2526.1,2526.0,3.95882818]
[1750377921822,27.6836,2526.1,2526.0,3.95882818]
[1750377922237,27.6826,2526.1,2526.0,3.95882818]
[1750377922952,0.0576,2525.8,2525.5,3.95945953]
[1750377923113,10.0576,2525.6,2525.5,3.95945953]
[1750377923318,6.5016,2525.6,2525.5,3.95945953]
[1750377924637,6.444,2525.6,2525.5,3.95945953]
[1750377924844,6.5016,2525.6,2525.5,3.95945953]
[1750377927155,6.444,2525.6,2525.5,3.95945953]
[1750377927461,6.5016,2525.6,2525.5,3.95945953]
[1750377929241,8.1666,2525.6,2525.5,3.95945953]
[1750377931249,8.109,2525.6,2525.5,3.95945953]
[1750377931627,1.665,2525.6,2525.5,3.95945953]
[1750377931827,8.102,2525.6,2525.5,3.95945953]
[1750377932259,1.665,2525.6,2525.5,3.95945953]
[1750377932433,2.4799,2525.9,2525.8,3.95914165]
[1750377932641,11.40335802,2525.9,2525.8,3.95914165]
[1750377932826,10.64505802,2525.9,2525.8,3.95914165]
[1750377933227,4.15045802,2525.9,2525.8,3.95914165]
[1750377933429,20.58745802,2525.9,2525.8,3.95914165]
[1750377933736,14.20805802,2525.9,2525.8,3.95914165]
[1750377933948,18.101,2525.9,2525.8,3.95914165]
[1750377935838,10.0576,2525.8,2525.4,0.7545]
[1750377936044,0.0576,2525.8,2525.7,3.95916814]
[1750377936246,6.4926,2525.8,2525.7,3.95916814]
[1750377937364,6.435,2525.8,2525.7,3.95916814]
[1750377939933,6.4933,2525.8,2525.7,3.95916814]